bitfinex-derivatives/quotes_SOLF0:USTF0_20241212
["timestamp","ask_amount","ask_price","bid_price","bid_amount"]
[1734009968756,2.34,231.97,231.85,8.27627435]
[1734009968957,2.34,231.97,231.85,5.93627435]
[1734009969155,2.34,231.97,231.84,41.67340597]
[1734009969356,2.34,231.97,231.85,4.48227649]
[1734009969558,2.34,231.97,231.84,41.67340597]
[1734009969861,2.1551,231.93,231.9,2.1553]
[1734009970060,2.34,231.97,231.9,2.1553]
[1734009970751,2.34,231.97,231.91,2.1552]
[1734009971156,8.10139865,231.95,231.91,2.1552]
[1734009971857,8.10139865,231.96,231.89,8.10139865]
[1734009972156,4.4946,231.98,231.91,8.10139865]
[1734009972365,10.44139865,231.98,231.91,8.10139865]
[1734009972659,10.44139865,231.98,231.92,2.1551]
[1734009973058,8.10139865,231.96,231.89,8.10139865]
[1734009973259,8.10139865,231.96,231.9,2.1553]
[1734009973460,2.155,231.94,231.9,2.1553]
[1734009973858,2.155,231.94,231.87,8.10139865]
[1734009974163,8.10139865,231.96,231.87,8.10139865]
[1734009974164,10.25619865,231.96,231.87,8.10139865]
[1734009974355,10.25619865,231.96,231.89,8.10139865]
[1734009974864,10.25619865,231.96,231.92,2.1551]
[1734009975173,10.44139865,231.98,231.9,8.10139865]
[1734009975867,2.1547,231.97,231.9,8.10139865]
[1734009976563,2.1548,231.96,231.92,2.1551]
[1734009977362,2.1546,231.97,231.93,2.155]
[1734009978267,1.414,232.04,231.95,2.1548]
[1734009978268,2.1545,231.99,231.95,2.1548]
[1734009978465,4.4945,231.99,231.95,2.1548]
[1734009978766,2.1546,231.98,231.92,8.10139865]
[1734009978960,8.10139865,231.98,231.94,2.1549]
[1734009979567,8.10139865,231.96,231.91,2.1552]
[1734009980466,2.1551,231.92,231.89,2.1553]
[1734009981568,2.34,231.95,231.88,2.1554]
[1734009981868,8.10139865,231.94,231.88,2.1554]
[1734009982257,8.10139865,231.94,231.86,5.95045154]
[1734009982458,2.1553,231.9,231.86,2.1557]
[1734009982866,4.18239519,231.89,231.86,2.1557]
[1734009983163,4.18239519,231.88,231.87,2.1556]
[1734009983958,4.18239519,231.93,231.85,31.90320483]
[1734009984166,8.10139865,231.94,231.87,8.10139865]
[1734009984167,4.18239519,231.92,231.87,8.10139865]
[1734009984366,4.18239519,231.91,231.88,4.49069581]
[1734009984566,4.18239519,231.9,231.87,14.05185019]
[1734009984761,8.10139865,231.94,231.88,4.49077576]
[1734009985069,4.18565886,231.93,231.87,31.90320483]
[1734009985263,4.18565886,231.92,231.91,2.1551]
[1734009987765,4.18565886,231.92,231.89,2.1554]
[1734009987972,8.10139865,231.92,231.86,5.95045154]
[1734009988172,4.18964711,231.91,231.85,23.80180618]
[1734009988365,4.18964711,231.91,231.87,2.1556]
[1734009988366,4.18964711,231.9,231.87,2.1556]
[1734009988769,4.18964711,231.89,231.87,2.1556]
[1734009989067,8.10139865,231.92,231.85,2.1557]
[1734009989068,4.18964711,231.88,231.85,2.1557]
[1734009989267,4.18964711,231.88,231.84,23.80180618]
[1734009989268,4.18964711,231.87,231.84,23.80180618]
[1734009989468,2.34,231.92,231.82,5.95045154]
[1734009989469,12.29104576,231.86,231.82,5.95045154]
[1734009989665,4.18964711,231.85,231.81,5.95045154]
[1734009989966,4.18964711,231.84,231.79,23.80180618]
[1734009990163,4.18964711,231.83,231.81,2.1561]
[1734009990371,4.18964711,231.82,231.81,2.1561]
[1734009991171,10.25709865,231.86,231.81,2.1561]
[1734009991472,4.19025271,231.85,231.81,2.1561]
[1734009991667,4.18865096,231.84,231.82,2.156]
[1734009991876,4.18865096,231.83,231.82,2.156]
[1734009994375,2.34,231.87,231.81,8.10139865]
[1734009994673,4.18634682,231.86,231.8,5.95045154]
[1734009994869,10.44139865,231.87,231.8,5.95045154]
[1734009995174,4.18637575,231.86,231.83,2.1559]
[1734009995368,4.18637575,231.85,231.83,2.1559]
[1734009995571,4.18637575,231.84,231.83,2.1559]
[1734009997376,4.18637575,231.84,231.83,10.25729865]
[1734009997674,12.57659865,231.91,231.83,8.10139865]
[1734009997970,4.18486491,231.9,231.83,8.10139865]
[1734009998278,4.18486491,231.89,231.87,2.1555]
[1734009998573,4.18486491,231.88,231.87,2.1555]
[1734009998775,4.18486491,231.88,231.83,8.10139865]
[1734009999071,4.18486491,231.87,231.86,2.1556]
[1734010000577,8.10139865,231.89,231.86,2.1556]
[1734010000776,4.18456413,231.87,231.86,2.1556]
[1734010002476,12.28596278,231.87,231.82,5.95045154]
[1734010002774,2.32,231.91,231.8,23.80180618]
[1734010002775,8.10139865,231.85,231.8,23.80180618]
[1734010003081,4.18456413,231.84,231.81,2.1561]
[1734010003281,4.18456413,231.83,231.81,2.1561]
[1734010003474,4.18456413,231.82,231.81,2.1561]
[1734010003670,4.18456413,231.84,231.81,2.1561]
[1734010003975,4.1847589,231.83,231.81,2.1561]
[1734010004181,4.1847589,231.82,231.81,2.1561]
[1734010004485,4.1847589,231.82,231.79,2.1563]
[1734010004669,4.1847589,231.81,231.79,2.1563]
[1734010004874,4.1847589,231.8,231.76,8.10705154]
[1734010005074,4.1847589,231.79,231.76,2.1566]
[1734010005376,4.1847589,231.78,231.76,2.1566]
[1734010005672,4.1847589,231.77,231.76,2.1566]
[1734010007078,2.1562,231.8,231.76,2.1566]
[1734010007374,4.18198118,231.79,231.76,2.1566]
[1734010007573,4.18069944,231.78,231.76,2.1566]
[1734010007780,4.18069944,231.77,231.76,2.1566]
[1734010007981,4.18069944,231.77,231.74,2.1567]
[1734010008482,4.18069944,231.76,231.73,5.29249894]
[1734010008677,10.42139865,231.81,231.74,8.10139865]
[1734010008982,4.17932726,231.8,231.74,8.10139865]
[1734010009178,4.17932726,231.79,231.74,8.10139865]
[1734010009372,4.17932726,231.78,231.74,8.10139865]
[1734010009578,4.17932726,231.77,231.74,8.10139865]
[1734010009777,10.42139865,231.81,231.74,8.10139865]
[1734010009778,4.17932726,231.76,231.74,8.10139865]
[1734010009981,2.1562,231.8,231.76,2.1566]
[1734010010281,4.17822772,231.79,231.76,2.1566]
[1734010010473,4.17822772,231.78,231.76,2.1566]
[1734010010671,4.17822772,231.77,231.76,2.1566]
[1734010011183,4.17822772,231.77,231.76,10.25799865]
[1734010011381,2.32,231.81,231.76,8.10139865]
[1734010011579,4.17612661,231.8,231.79,2.1563]
[1734010012285,10.25729865,231.84,231.76,8.10139865]
[1734010012481,4.17545266,231.83,231.8,2.1562]
[1734010012681,4.17545266,231.82,231.8,2.1562]
[1734010012881,4.17545266,231.81,231.8,2.1562]
[1734010013086,4.17545266,231.83,231.79,2.1563]
[1734010013380,4.17545266,231.82,231.79,2.1563]
[1734010013582,4.17545266,231.81,231.79,2.1563]
[1734010013782,4.17545266,231.8,231.79,2.1563]
[1734010013982,2.156,231.83,231.79,2.1563]
[1734010014186,4.17520103,231.82,231.79,2.1563]
[1734010014384,4.17520103,231.81,231.79,2.1563]
[1734010014580,4.17520103,231.8,231.79,2.1563]
[1734010015880,2.156,231.83,231.79,2.1563]
[1734010016077,4.1748021,231.82,231.8,2.1562]
[1734010016283,8.10139865,231.84,231.8,2.1562]
[1734010016476,4.17467334,231.83,231.8,2.1562]
[1734010017486,4.17467334,231.83,231.76,8.10139865]
[1734010017889,4.17467334,231.82,231.78,8.10139865]
[1734010018084,4.17467334,231.81,231.78,8.10139865]
[1734010018384,10.25709865,231.87,231.82,2.156]
[1734010018586,4.17527097,231.86,231.82,2.156]
[1734010018789,4.17527097,231.85,231.82,2.156]
[1734010018983,4.17527097,231.84,231.82,2.156]
[1734010019183,4.17527097,231.83,231.82,2.156]
[1734010019585,4.17527097,231.83,231.8,2.1562]
[1734010019889,4.17566542,231.82,231.78,8.10139865]
[1734010020187,2.1557,231.86,231.82,2.156]
[1734010020386,4.17573286,231.85,231.78,8.10139865]
[1734010020687,4.17573286,231.84,231.79,10.4327345]
[1734010020887,10.25699865,231.87,231.79,5.95045154]
[1734010021087,4.17563697,231.86,231.8,4.483556]
[1734010021288,4.17563697,231.85,231.79,5.95045154]
[1734010021583,4.17632411,231.84,231.8,4.48349122]
[1734010021779,4.17632411,231.83,231.8,5.95045154]
[1734010021982,8.10139865,231.87,231.8,14.05185019]
[1734010022183,4.17622786,231.86,231.81,4.48503104]
[1734010022380,4.17622786,231.85,231.83,2.1559]
[1734010022585,8.10139865,231.87,231.81,5.95045154]
[1734010022786,4.17696806,231.86,231.85,2.1557]
[1734010024092,2.1552,231.92,231.88,2.1554]
[1734010024384,4.17753255,231.91,231.88,2.1554]
[1734010024688,2.1552,231.92,231.88,2.1554]
[1734010024883,4.1781795,231.91,231.88,2.1554]
[1734010025189,4.1781795,231.9,231.84,8.10139865]
[1734010025388,4.1781795,231.89,231.84,8.10139865]
[1734010025586,4.1781795,231.88,231.84,8.10139865]
[1734010025790,8.10139865,231.91,231.88,2.1555]
[1734010025990,4.17866264,231.9,231.88,2.1555]
[1734010026285,4.17866264,231.89,231.88,2.1555]
[1734010028192,4.17870148,231.89,231.88,2.1555]
[1734010028390,10.25639865,231.93,231.89,2.1554]
[1734010028593,4.17858061,231.92,231.89,2.1554]
[1734010028790,4.17858061,231.91,231.89,2.1554]
[1734010028988,4.17858061,231.9,231.89,2.1554]
[1734010030985,4.17857388,231.9,231.89,2.1554]
[1734010035100,4.17857388,231.9,231.84,5.95045154]
[1734010035295,4.17857388,231.89,231.83,8.10139865]
[1734010035500,4.17857388,231.88,231.82,5.2188589]
[1734010035694,4.17857388,231.87,231.82,5.2188589]
[1734010035887,4.17857388,231.86,231.82,5.2188589]
[1734010036093,10.25689865,231.89,231.82,5.2188589]
[1734010036294,4.17825452,231.88,231.82,5.2188589]
[1734010036488,4.17825452,231.87,231.82,5.2188589]
[1734010036693,4.17825452,231.86,231.84,2.1558]
[1734010036888,4.17825452,231.85,231.82,5.2188589]
[1734010037088,2.24,231.92,231.78,10.89139865]
[1734010037295,8.10139865,231.87,231.78,10.89139865]
[1734010037489,4.17843123,231.86,231.78,10.89139865]
[1734010037695,4.17843123,231.85,231.78,10.89139865]
[1734010037895,4.17843123,231.84,231.78,10.89139865]
[1734010038594,4.17843123,231.83,231.8,2.1562]
[1734010038792,10.25719865,231.85,231.8,2.1562]
[1734010038793,4.17843123,231.82,231.8,2.1562]
[1734010038995,4.17843123,231.81,231.8,2.1562]
[1734010041996,4.17537339,231.81,231.79,2.1563]
[1734010042305,4.17568202,231.8,231.75,71.43004899]
[1734010042497,10.25739865,231.83,231.78,2.1563]
[1734010042699,4.17539399,231.82,231.78,2.1563]
[1734010042898,4.17539399,231.81,231.76,5.24498841]
[1734010043101,4.17539399,231.8,231.76,5.24498841]
[1734010043397,10.25739865,231.83,231.76,5.24498841]
[1734010043803,4.17540815,231.82,231.79,2.1563]
[1734010044101,8.10139865,231.8,231.72,8.10139865]
[1734010044300,4.17540815,231.79,231.72,8.10139865]
[1734010044499,8.10139865,231.8,231.76,2.1565]
[1734010044500,4.17540815,231.78,231.76,2.1565]
[1734010044799,4.17540815,231.78,231.72,8.10139865]
[1734010044800,4.17540815,231.77,231.72,8.10139865]
[1734010044992,2.1562,231.81,231.74,8.10139865]
[1734010045197,4.1750594,231.8,231.74,8.10139865]
[1734010045393,4.1750594,231.79,231.74,8.10139865]
[1734010045598,10.25729865,231.84,231.76,8.10139865]
[1734010045906,4.17456099,231.83,231.78,8.10139865]
[1734010046205,4.17456099,231.82,231.78,8.10139865]
[1734010046406,4.17456099,231.81,231.76,8.10139865]
[1734010046702,8.10139865,231.82,231.75,2.24]
[1734010046902,4.17449529,231.81,231.75,2.24]
[1734010047100,4.17449529,231.8,231.75,2.24]
[1734010047302,4.17449529,231.79,231.75,2.24]
[1734010047605,8.10139865,231.82,231.75,2.24]
[1734010047806,4.17472833,231.81,231.74,8.10139865]
[1734010047998,4.17472833,231.8,231.78,2.1564]
[1734010048199,4.17472833,231.79,231.73,5.17652156]
[1734010048399,4.17472833,231.78,231.73,5.17652156]
[1734010048700,8.10139865,231.8,231.73,5.17652156]
[1734010048701,4.17472833,231.77,231.73,5.17652156]
[1734010048898,8.10139865,231.8,231.73,5.17652156]
[1734010049198,4.17457172,231.79,231.73,5.17652156]
[1734010049404,6.33097172,231.79,231.74,2.1567]
[1734010049606,4.17457172,231.78,231.74,2.1567]
[1734010049801,2.1564,231.79,231.73,5.17652156]
[1734010050008,4.17403027,231.78,231.73,5.17652156]
[1734010050197,4.17403027,231.77,231.73,5.17652156]
[1734010050401,4.17403027,231.76,231.73,5.17652156]
[1734010050600,2.1564,231.79,231.75,2.1566]
[1734010050902,4.17367955,231.78,231.75,2.1566]
[1734010051103,4.17367955,231.77,231.75,2.1566]
[1734010051304,4.17367955,231.76,231.75,2.1566]
[1734010052508,2.24,231.82,231.79,2.1562]
[1734010052804,4.1729488,231.81,231.8,8.10139865]
[1734010053002,8.10139865,231.89,231.85,2.1558]
[1734010053306,4.17218996,231.88,231.83,8.10139865]
[1734010053506,4.17218996,231.87,231.83,8.10139865]
[1734010053807,4.17218996,231.86,231.83,8.10139865]
[1734010054011,69.95216738,231.91,231.83,8.10139865]
[1734010054012,4.17218996,231.85,231.83,8.10139865]
[1734010054201,8.10139865,231.89,231.79,2.24]
[1734010054405,6.32820406,231.88,231.84,2.1558]
[1734010054600,4.17270406,231.87,231.84,2.1558]
[1734010055408,6.32830406,231.87,231.83,2.1559]
[1734010055610,4.17270406,231.86,231.83,2.1559]
[1734010056101,4.17270406,231.86,231.79,10.34139865]
[1734010056102,4.17270406,231.85,231.79,10.34139865]
[1734010056408,2.1557,231.86,231.81,2.1561]
[1734010056601,4.17390472,231.85,231.79,10.34139865]
[1734010056800,4.17390472,231.84,231.79,10.34139865]
[1734010057000,4.17390472,231.83,231.79,8.10139865]
[1734010057201,10.25699865,231.87,231.79,8.10139865]
[1734010057402,4.17387976,231.86,231.81,8.10139865]
[1734010057606,4.17387976,231.85,231.81,8.10139865]
[1734010057811,4.17387976,231.84,231.83,2.1559]
[1734010058109,11.05536865,231.91,231.83,8.10139865]
[1734010058310,4.17396108,231.9,231.85,2.1558]
[1734010058509,4.17396108,231.89,231.85,2.1558]
[1734010058705,4.17396108,231.88,231.85,2.1558]
[1734010058905,4.17396108,231.87,231.85,2.1558]
[1734010059106,4.17396108,231.86,231.85,2.1558]
[1734010061812,12.27535973,231.86,231.82,2.156]
[1734010062018,4.17396108,231.85,231.82,2.156]
[1734010062409,4.1743845,231.84,231.82,2.156]
[1734010062614,4.1743845,231.83,231.82,2.156]
[1734010064720,4.1743845,231.83,231.78,14.05185019]
[1734010064721,4.1743845,231.83,231.78,8.10139865]
[1734010065015,4.17470068,231.82,231.76,8.10139865]
[1734010065323,4.17470068,231.81,231.75,5.95045154]
[1734010065721,4.17470068,231.81,231.74,14.05185019]
[1734010066025,12.27674162,231.8,231.73,11.1269731]
[1734010066214,4.17534297,231.79,231.73,5.17652156]
[1734010067724,4.17458117,231.78,231.76,2.1565]
[1734010067927,4.17458117,231.77,231.76,2.1565]
[1734010068934,8.10139865,231.8,231.76,2.1565]
[1734010069136,4.17402956,231.79,231.76,2.1565]
[1734010069336,4.17402956,231.78,231.76,2.1565]
[1734010069530,2.1562,231.81,231.76,2.1565]
[1734010069730,4.17400429,231.8,231.76,2.1565]
[1734010069930,4.17400429,231.79,231.76,2.1565]
[1734010070229,2.1562,231.81,231.76,2.1565]
[1734010070230,4.17400429,231.78,231.76,2.1565]
[1734010070437,4.17400429,231.77,231.76,2.1565]
[1734010071736,8.10139865,231.86,231.81,2.1561]
[1734010072033,4.1731791,231.85,231.81,2.1561]
[1734010072230,4.1731791,231.84,231.81,2.1561]
[1734010072437,4.1731791,231.83,231.81,2.1561]
[1734010072733,4.1731791,231.82,231.81,2.1561]
[1734010072929,4.1731791,231.85,231.81,2.1561]
[1734010073135,4.1731791,231.84,231.81,2.1561]
[1734010073437,4.1731791,231.83,231.81,2.1561]
[1734010073632,4.1731791,231.82,231.81,2.1561]
[1734010073832,4.1731791,231.84,231.78,8.10139865]
[1734010074036,4.1731791,231.83,231.78,8.10139865]
[1734010074338,4.1731791,231.82,231.78,8.10139865]
[1734010074536,4.1731791,231.81,231.79,2.1563]
[1734010074732,4.1731791,231.81,231.78,8.10139865]
[1734010074733,4.1731791,231.8,231.78,8.10139865]
[1734010074938,2.1558,231.85,231.78,14.0481331]
[1734010075139,2.1558,231.85,231.78,8.10139865]
[1734010075336,4.17566542,231.84,231.78,8.10139865]
[1734010075536,4.17566542,231.83,231.81,2.1561]
[1734010075738,4.17566542,231.82,231.81,2.1561]
[1734010076535,4.17566542,231.82,231.76,5.94673445]
[1734010076740,4.17566542,231.81,231.75,14.0481331]
[1734010076942,4.17566542,231.8,231.76,4.48539005]
[1734010077143,4.17566542,231.79,231.77,2.1565]
[1734010077437,4.17566542,231.78,231.75,8.10139865]
[1734010077643,4.17566542,231.77,231.76,2.1566]
[1734010077843,4.17566542,231.81,231.75,8.10139865]
[1734010078038,4.17566542,231.8,231.75,8.10139865]
[1734010078239,2.1562,231.81,231.74,5.94673445]
[1734010078439,4.17957641,231.79,231.74,5.94673445]
[1734010078743,4.17957641,231.78,231.77,2.1565]
[1734010079342,4.17957641,231.78,231.76,2.1566]
[1734010079544,4.17957641,231.77,231.76,2.1566]
[1734010079738,4.17957641,231.77,231.75,8.10139865]
[1734010079943,12.49749865,231.82,231.76,2.1566]
[1734010080240,4.18108131,231.81,231.76,2.1566]
[1734010080444,4.18108131,231.8,231.76,2.1566]
[1734010080641,4.18108131,231.79,231.75,10.25809865]
[1734010080947,10.34139865,231.82,231.75,10.25809865]
[1734010081240,4.18265547,231.81,231.75,10.25809865]
[1734010081442,10.34139865,231.82,231.75,10.25809865]
[1734010081443,4.18265547,231.8,231.75,10.25809865]
[1734010081643,4.18265547,231.79,231.75,10.25809865]
[1734010081844,4.18265547,231.78,231.75,10.25809865]
[1734010082048,4.18265547,231.77,231.75,10.25809865]
[1734010082241,4.18265547,231.76,231.75,2.1567]
[1734010082436,4.18265547,231.79,231.75,2.1567]
[1734010082643,4.18265547,231.78,231.73,11.12325601]
[1734010082941,4.18265547,231.77,231.73,5.17652156]
[1734010083144,2.1567,231.75,231.71,5.94673445]
[1734010083344,4.18265547,231.74,231.7,23.78693781]
[1734010083543,8.10139865,231.78,231.69,9.48189865]
[1734010083544,4.18336777,231.73,231.69,15.4286331]
[1734010083744,4.18336777,231.73,231.69,2.1572]
[1734010083948,4.18336777,231.72,231.69,2.1572]
[1734010084148,4.18336777,231.71,231.69,2.1572]
[1734010084341,2.1569,231.74,231.69,2.1572]
[1734010084342,4.18336777,231.73,231.69,2.1572]
[1734010084648,4.18336777,231.72,231.68,2.1573]
[1734010084851,4.18336777,231.72,231.67,74.61675689]
[1734010084852,4.18336777,231.71,231.67,74.61675689]
[1734010085048,2.24,231.76,231.65,17.84020336]
[1734010085049,12.28476642,231.7,231.65,17.84020336]
[1734010085349,4.18336777,231.69,231.63,17.6532331]
[1734010085549,4.18336777,231.68,231.63,9.54879865]
[1734010085844,4.18336777,231.67,231.62,8.10139865]
[1734010086049,4.18336777,231.66,231.64,2.1576]
[1734010086246,10.25859865,231.7,231.64,2.1576]
[1734010086450,4.17790318,231.69,231.62,8.10139865]
[1734010086647,10.25859865,231.7,231.65,2.1576]
[1734010087041,4.17790058,231.69,231.65,2.1576]
[1734010087246,4.17790058,231.68,231.65,2.1576]
[1734010087544,8.10139865,231.66,231.6,5.94673445]
[1734010087751,8.10139865,231.64,231.56,14.0481331]
[1734010088046,4.17790058,231.63,231.58,5.26887606]
[1734010088245,8.10139865,231.64,231.58,5.26887606]
[1734010088447,4.17315945,231.63,231.58,5.26887606]
[1734010088646,4.17315945,231.62,231.58,5.26887606]
[1734010088843,8.10139865,231.64,231.58,5.26887606]
[1734010089049,4.17330526,231.63,231.58,5.26887606]
[1734010089245,8.10139865,231.64,231.58,7.42707606]
[1734010089550,4.17037714,231.63,231.58,2.1582]
[1734010089850,8.10139865,231.64,231.55,8.10139865]
[1734010090041,8.10139865,231.62,231.52,23.78693781]
[1734010090244,8.10139865,231.62,231.53,8.10139865]
[1734010090437,8.10139865,231.62,231.55,8.10139865]
[1734010090642,10.25929865,231.62,231.55,10.25989865]
[1734010090844,10.25929865,231.62,231.53,8.10139865]
[1734010091042,8.10139865,231.62,231.53,8.10139865]
[1734010091238,8.10139865,231.6,231.55,2.1585]
[1734010091445,8.10139865,231.6,231.55,5.10201435]
[1734010091844,8.10139865,231.6,231.56,2.1584]
[1734010092041,8.10139865,231.62,231.55,13.203413]
[1734010092551,8.10139865,231.62,231.57,2.1584]
[1734010093341,8.10139865,231.62,231.58,2.1583]
[1734010093541,8.10139865,231.62,231.55,13.203413]
[1734010094747,8.10139865,231.62,231.57,2.1584]
[1734010095151,4.3123,231.82,231.59,8.10139865]
[1734010095355,8.10139865,231.66,231.59,8.10139865]
[1734010096157,2.1571,231.71,231.64,2.1577]
[1734010096454,8.10139865,231.69,231.61,8.10139865]
[1734010096756,4.3109,231.89,231.63,8.10139865]
[1734010096949,8.10139865,231.72,231.65,8.10139865]
[1734010097856,8.10139865,231.74,231.67,8.10139865]
[1734010098451,8.10139865,231.74,231.71,2.1571]
[1734010098753,8.10139865,231.74,231.67,8.10139865]
[1734010099152,8.10139865,231.74,231.71,2.157]
[1734010099353,8.10139865,231.76,231.69,8.10139865]
[1734010099560,8.10139865,231.78,231.71,8.10139865]
[1734010099752,8.10139865,231.76,231.73,2.1568]
[1734010100057,4.3109,231.89,231.69,8.10139865]
[1734010100259,8.10139865,231.76,231.72,2.1569]
[1734010100462,8.10139865,231.76,231.69,8.10139865]
[1734010102355,8.10139865,231.74,231.67,5.22091446]
[1734010102554,8.10139865,231.72,231.69,2.1572]
[1734010102764,8.10139865,231.72,231.67,5.22091446]
[1734010103154,8.10139865,231.7,231.62,8.10139865]
[1734010103459,8.10139865,231.68,231.56,5.94673445]
[1734010103663,8.10139865,231.7,231.66,2.1574]
[1734010104657,8.10139865,231.72,231.64,8.10139865]
[1734010105463,8.10139865,231.72,231.7,2.1572]
[1734010106760,8.10139865,231.72,231.64,8.10139865]
[1734010107764,8.10139865,231.74,231.66,8.10139865]
[1734010107961,4.16092731,231.73,231.66,8.10139865]
[1734010108159,8.10139865,231.74,231.66,8.10139865]
[1734010108663,8.10139865,231.74,231.7,2.1572]
[1734010109364,2.1565,231.78,231.72,2.157]
[1734010109566,8.10139865,231.77,231.7,8.10139865]
[1734010109762,8.10139865,231.79,231.72,8.10139865]
[1734010109961,8.10139865,231.79,231.64,5.94673445]
[1734010109962,8.10139865,231.81,231.74,8.10139865]
[1734010110562,4.16285792,231.8,231.76,2.1565]
[1734010110768,4.16285792,231.79,231.76,2.1565]
[1734010110967,8.10139865,231.81,231.76,2.1565]
[1734010111267,4.16281112,231.8,231.76,2.1565]
[1734010111568,8.10139865,231.81,231.77,2.1565]
[1734010111766,4.16292965,231.8,231.77,2.1565]
[1734010111962,8.10139865,231.81,231.77,2.1565]
[1734010112570,8.10139865,231.79,231.77,2.1565]
[1734010112862,4.162918,231.78,231.76,2.1566]
[1734010113067,8.10139865,231.79,231.7,8.10139865]
[1734010113269,4.16307194,231.78,231.7,8.10139865]
[1734010113467,8.10139865,231.77,231.7,8.10139865]
[1734010113767,8.10139865,231.77,231.68,8.10139865]
[1734010113969,8.10139865,231.77,231.73,2.1568]
[1734010114564,8.10139865,231.77,231.68,8.10139865]
[1734010114766,8.10139865,231.77,231.74,2.1568]
[1734010115466,4.16383017,231.76,231.74,2.1568]
[1734010115672,8.10139865,231.77,231.74,2.1568]
[1734010115968,4.16384145,231.76,231.74,2.1568]
[1734010116168,8.10139865,231.77,231.74,2.1568]
[1734010116370,4.16407634,231.76,231.74,2.1568]
[1734010116570,8.10139865,231.77,231.74,2.1568]
[1734010117665,4.16490727,231.76,231.68,8.10139865]
[1734010117871,8.10139865,231.75,231.67,5.09884548]
[1734010118173,8.10139865,231.73,231.67,5.09884548]
[1734010118366,8.10139865,231.71,231.68,2.1573]
[1734010118572,8.10139865,231.71,231.67,5.09884548]
[1734010119074,8.10139865,231.69,231.67,2.1574]
[1734010119273,8.10139865,231.69,231.61,14.0481331]
[1734010119472,8.10139865,231.69,231.62,4.42689064]
[1734010119780,8.10139865,231.69,231.66,2.1575]
[1734010120080,8.10139865,231.69,231.61,14.0481331]
[1734010120276,8.10139865,231.69,231.62,4.42675313]
[1734010120476,8.10139865,231.69,231.61,8.10139865]
[1734010120869,8.10139865,231.69,231.6,23.78693781]
[1734010121173,8.10139865,231.69,231.61,8.10139865]
[1734010121370,4.1697026,231.68,231.61,8.10139865]
[1734010121572,4.16996686,231.68,231.63,2.1578]
[1734010122073,4.16996686,231.67,231.62,2.1578]
[1734010122273,10.25869865,231.69,231.61,8.10139865]
[1734010122471,8.10139865,231.67,231.58,23.78693781]
[1734010122681,4.17066655,231.66,231.59,8.10139865]
[1734010122874,4.17066655,231.65,231.59,8.10139865]
[1734010123074,8.10139865,231.67,231.59,8.10139865]
[1734010123376,8.10139865,231.63,231.56,5.94673445]
[1734010123571,8.10139865,231.63,231.56,28.21624756]
[1734010123775,8.10139865,231.63,231.59,2.1581]
[1734010124071,8.10139865,231.65,231.57,8.10139865]
[1734010124881,4.17192332,231.64,231.57,8.10139865]
[1734010125076,8.10139865,231.65,231.57,8.10139865]
[1734010125269,4.17210338,231.64,231.57,8.10139865]
[1734010126477,4.17210338,231.64,231.59,2.1581]
[1734010127273,8.10139865,231.65,231.59,2.1581]
[1734010127481,4.17301084,231.64,231.59,2.1581]
[1734010127677,8.10139865,231.65,231.59,2.1581]
[1734010127877,4.17302156,231.64,231.59,2.1581]
[1734010128175,12.27438223,231.63,231.56,5.94673445]
[1734010128377,8.10139865,231.63,231.57,2.1583]
[1734010128977,6.33121397,231.62,231.56,2.1584]
[1734010129174,12.27471262,231.61,231.56,2.1584]
[1734010129369,8.10139865,231.61,231.56,2.1584]
[1734010129573,10.25939865,231.61,231.55,2.1586]
[1734010130483,10.25939865,231.61,231.53,31.88833646]
[1734010130780,10.25939865,231.61,231.56,2.1584]
[1734010131785,10.25939865,231.61,231.55,2.1585]
[1734010132180,8.10139865,231.61,231.53,31.88833646]
[1734010132380,0.87186,231.77,231.55,8.10139865]
[1734010132381,8.10139865,231.63,231.55,8.10139865]
[1734010132576,4.17086349,231.62,231.55,8.10139865]
[1734010132777,8.10139865,231.63,231.55,8.10139865]
[1734010132977,4.17093625,231.62,231.57,2.1584]
[1734010133282,10.25919865,231.63,231.57,2.1584]
[1734010134086,2.1578,231.63,231.58,2.1582]
[1734010134279,4.17065605,231.62,231.58,2.1582]
[1734010134477,10.25919865,231.63,231.58,2.1582]
[1734010134678,4.17041344,231.62,231.58,2.1582]
[1734010134882,10.25919865,231.63,231.58,2.1582]
[1734010135281,10.25919865,231.63,231.59,2.1582]
[1734010135478,2.1578,231.63,231.59,2.1582]
[1734010135782,8.10139865,231.67,231.6,2.158]
[1734010136085,4.17034151,231.66,231.58,8.10139865]
[1734010136284,4.17034151,231.65,231.58,8.10139865]
[1734010136490,10.25879865,231.67,231.58,8.10139865]
[1734010136780,4.17043163,231.66,231.58,8.10139865]